bitfinex/quotes_SOLUSD_20251119
["timestamp","ask_amount","ask_price","bid_price","bid_amount"]
[1763568977613,2.5,135.23,135.19,9.64646913]
[1763568978536,0.72,135.28,135.22,9.64646913]
[1763568978724,11.56882769,135.27,135.24,9.64646913]
[1763568978924,11.56882769,135.27,135.22,0.68]
[1763568979128,11.56882769,135.27,135.23,9.64646913]
[1763568979318,1.78,135.26,135.24,9.64646913]
[1763568979519,9.78882769,135.3,135.25,9.64646913]
[1763568979840,1.78,135.32,135.29,9.64646913]
[1763568980337,10.50882769,135.31,135.26,9.64646913]
[1763568980541,9.78882769,135.31,135.23,18.12096]
[1763568980724,0.72,135.35,135.29,9.64646913]
[1763568980918,1.78,135.34,135.3,9.64646913]
[1763568981121,1.78,135.33,135.31,9.64646913]
[1763568981420,1.78,135.33,135.27,0.69]
[1763568981421,1.78,135.33,135.3,9.64646913]
[1763568981620,2.5,135.33,135.28,9.64646913]
[1763568981826,9.78882769,135.32,135.27,28.45742913]
[1763568982046,9.78882769,135.32,135.28,9.64646913]
[1763568982251,10.50882769,135.32,135.27,10.33646913]
[1763568982420,0.72,135.31,135.27,9.64646913]
[1763568982844,21.21529682,135.33,135.27,10.33646913]
[1763568983018,21.93529682,135.33,135.27,10.33646913]
[1763568983225,9.78882769,135.32,135.27,0.69]
[1763568983547,9.78882769,135.32,135.29,9.64646913]
[1763568983925,0.72,135.31,135.23,0.69]
[1763568984244,9.78882769,135.27,135.22,9.64646913]
[1763568984420,1.78,135.26,135.22,9.64646913]
[1763568984744,1.78,135.27,135.25,9.64646913]
[1763568984919,27.76742913,135.31,135.25,9.64646913]
[1763568985116,11.56882769,135.3,135.27,9.64646913]
[1763568985322,11.56882769,135.3,135.26,9.64646913]
[1763568985521,0.67,135.29,135.2,7.3963066]
[1763568985845,11.56882769,135.3,135.26,9.64646913]
[1763568986344,1.78,135.29,135.26,9.64646913]
[1763568987124,1.78,135.29,135.28,9.64646913]
[1763568987326,1.7363,135.29,135.23,18.12096]
[1763568987544,1.7363,135.29,135.26,9.64646913]
[1763568987740,1.7363,135.29,135.24,18.80096]
[1763568987926,1.7363,135.29,135.26,9.64646913]
[1763568988127,1.7363,135.29,135.25,9.64646913]
[1763568988429,1.78,135.29,135.28,9.64646913]
[1763568988622,10.45882769,135.32,135.28,9.64646913]
[1763568988822,1.78,135.31,135.29,6.32914366]
[1763568989727,10.45882769,135.3,135.23,0.68]
[1763568989927,16.78797135,135.3,135.23,0.68]
[1763568990249,9.78882769,135.28,135.24,6.32914366]
[1763568990461,1.78,135.27,135.23,18.80096]
[1763568990628,1.78,135.27,135.23,25.13010366]
[1763568990830,10.45882769,135.26,135.19,0.68]
[1763568991130,9.78882769,135.26,135.21,6.32914366]
[1763568991331,0.67,135.26,135.22,6.32914366]
[1763568991628,1.78,135.25,135.22,6.32914366]
[1763568991955,16.11797135,135.24,135.16,0.68]
[1763568992257,9.78882769,135.21,135.17,6.32914366]
[1763568992425,1.8,135.2,135.17,6.32914366]
[1763568992856,9.78882769,135.19,135.13,18.80096]
[1763568993032,1.8,135.2,135.16,6.32914366]
[1763568993231,9.78882769,135.19,135.14,18.80096]
[1763568993433,0.67,135.21,135.17,6.32914366]
[1763568993642,1.8,135.2,135.18,6.32914366]
[1763568993950,1.8,135.2,135.17,6.32914366]
[1763568994172,1.8,135.2,135.18,6.32914366]
[1763568994340,9.78882769,135.22,135.18,6.32914366]
[1763568994656,11.58882769,135.26,135.21,6.32914366]
[1763568994868,1.8,135.26,135.24,6.32914366]
[1763568995070,0.67,135.28,135.24,6.32914366]
[1763568995232,9.78882769,135.29,135.25,6.32914366]
[1763568995438,0.67,135.34,135.28,6.32914366]
[1763568995750,0.67,135.34,135.22,7.39527506]
[1763568995751,8.12914366,135.33,135.26,0.68]
[1763568996061,9.78882769,135.32,135.26,0.68]
[1763568996358,10.45882769,135.32,135.26,0.68]
[1763568996540,28.57978769,135.32,135.27,6.32914366]
[1763568996746,28.57978769,135.32,135.28,6.32914366]
[1763568996954,28.57978769,135.32,135.27,6.32914366]
[1763568997354,0.67,135.31,135.28,6.32914366]
[1763568997663,0.67,135.31,135.27,6.32914366]
[1763568997843,27.90978769,135.32,135.28,6.32914366]
[1763568998166,26.40017176,135.4,135.29,6.32914366]
[1763568998465,9.78882769,135.34,135.29,6.32914366]
[1763568998765,1.8,135.33,135.3,6.32914366]
[1763568998968,1.8,135.33,135.29,6.32914366]
[1763568999187,0.67,135.32,135.28,6.32914366]
[1763568999356,2.47,135.33,135.29,6.32914366]
[1763568999850,12.25882769,135.32,135.28,6.32914366]
[1763569000059,12.25882769,135.32,135.27,6.32914366]
[1763569000360,0.67,135.31,135.27,6.32914366]
[1763569000765,9.78882769,135.3,135.26,6.32914366]
[1763569001237,10.45882769,135.3,135.26,6.32914366]
[1763569001764,0.67,135.3,135.26,7.00914366]
[1763569002268,9.78882769,135.29,135.25,6.32914366]
[1763569002563,1.78,135.28,135.24,7.00914366]
[1763569002754,1.78,135.28,135.25,6.32914366]
[1763569002942,1.78,135.28,135.24,0.68]
[1763569003151,1.78,135.28,135.25,6.32914366]
[1763569003339,1.78,135.28,135.26,6.32914366]
[1763569003648,2.45,135.28,135.24,6.32914366]
[1763569003849,2.45,135.28,135.22,18.80096]
[1763569004040,2.45,135.28,135.24,6.32914366]
[1763569004240,9.78882769,135.27,135.23,6.32914366]
[1763569004663,10.45882769,135.27,135.23,6.32914366]
[1763569004863,10.45882769,135.27,135.22,18.80096]
[1763569004864,6.99914366,135.3,135.24,0.68]
[1763569005163,6.32914366,135.28,135.23,6.32914366]
[1763569005338,9.78882769,135.28,135.23,6.32914366]
[1763569005537,0.67,135.27,135.23,6.32914366]
[1763569005743,0.67,135.27,135.2,18.80096]
[1763569005744,9.78882769,135.28,135.25,6.32914366]
[1763569005946,9.78882769,135.28,135.2,31.84631407]
[1763569006160,9.78882769,135.28,135.25,6.32914366]
[1763569006362,1.78,135.27,135.25,6.32914366]
[1763569006871,2.45,135.27,135.23,6.32914366]
[1763569007648,16.78797135,135.26,135.2,18.12096]
[1763569007868,16.78797135,135.26,135.2,6.32914366]
[1763569008067,10.45882769,135.26,135.21,6.32914366]
[1763569008472,2.45,135.25,135.21,6.32914366]
[1763569009480,10.45882769,135.24,135.2,6.32914366]
[1763569009685,0.71,135.23,135.19,6.32914366]
[1763569009848,10.49882769,135.24,135.19,7.03914366]
[1763569010048,0.71,135.23,135.19,7.03914366]
[1763569010464,1.78,135.25,135.21,6.32914366]
[1763569010692,16.82797135,135.24,135.16,18.83096]
[1763569010852,9.78882769,135.22,135.17,6.32914366]
[1763569011182,1.78,135.21,135.18,6.32914366]
[1763569011379,1.78,135.21,135.19,6.32914366]
[1763569011875,1.78,135.21,135.18,6.32914366]
[1763569012352,1.78,135.21,135.19,6.32914366]
[1763569012552,1.78,135.21,135.2,6.32914366]
[1763569012968,1.78,135.21,135.18,6.32914366]
[1763569013179,1.78,135.21,135.16,18.83096]
[1763569013384,1.78,135.21,135.18,6.32914366]
[1763569014249,28.61978769,135.2,135.14,0.71]
[1763569014558,10.49882769,135.2,135.16,6.32914366]
[1763569014956,25.16010366,135.23,135.17,7.03914366]
[1763569015161,12.27882769,135.22,135.17,7.03914366]
[1763569015356,18.60797135,135.22,135.16,6.32914366]
[1763569015563,0.71,135.21,135.17,6.32914366]
[1763569015785,7.03914366,135.21,135.14,18.12096]
[1763569015985,7.03914366,135.21,135.16,6.32914366]
[1763569016350,0.71,135.2,135.16,6.32914366]
[1763569017390,10.49882769,135.2,135.16,6.32914366]
[1763569017685,6.32914366,135.21,135.17,0.71]
[1763569017686,9.78882769,135.21,135.17,0.71]
[1763569017862,1.78,135.2,135.15,0.71]
[1763569018076,2.49,135.2,135.14,18.12096]
[1763569018287,0.71,135.19,135.13,19.03096]
[1763569018473,7.03914366,135.19,135.13,19.03096]
[1763569018676,0.71,135.19,135.14,6.32914366]
[1763569018877,1.78,135.2,135.16,6.32914366]
[1763569019079,2.49,135.2,135.16,6.32914366]
[1763569019300,2.49,135.2,135.16,7.03914366]
[1763569019600,2.49,135.2,135.16,6.32914366]
[1763569019601,1.78,135.19,135.16,6.32914366]
[1763569019909,1.78,135.18,135.16,6.32914366]
[1763569020206,1.78,135.18,135.13,18.32096]
[1763569020397,24.45010366,135.14,135.13,0.2]
[1763569020597,27.90978769,135.14,135.13,0.2]
[1763569020903,1.8,135.14,135.13,0.2]
[1763569021198,0.71,135.17,135.13,0.2]
[1763569021497,8.12914366,135.14,135.13,0.2]
[1763569021723,8.12914366,135.14,135.06,6.32914366]
[1763569022029,4.89038717,135.15,135.07,7.03914366]
[1763569022195,1.8,135.14,135.08,18.12096]
[1763569022502,16.11797135,135.14,135.08,18.83096]
[1763569022807,9.78882769,135.11,135.08,0.71]
[1763569022980,1.8,135.1,135.08,0.71]
[1763569023174,9.78882769,135.09,135.05,0.71]
[1763569023587,9.78882769,135.09,135.06,6.32914366]
[1763569023794,1.8,135.1,135.08,6.32914366]
[1763569024239,9.78882769,135.13,135.09,7.03914366]
[1763569024378,1.8,135.13,135.11,6.32914366]
[1763569024777,1.8,135.13,135.1,6.32914366]
[1763569025075,1.8,135.13,135.09,6.32914366]
[1763569025382,1.8,135.13,135.1,6.32914366]
[1763569025579,1.8,135.13,135.1,7.03914366]
[1763569025977,1.8,135.13,135.07,7.03914366]
[1763569025978,10.43882769,135.12,135.07,7.03914366]
[1763569026178,19.92096,135.13,135.07,68.42914366]
[1763569026379,16.11797135,135.12,135.07,69.13914366]
[1763569027009,9.78882769,135.1,135.02,0.71]
[1763569027207,9.78882769,135.07,135.03,7.03914366]
[1763569027520,1.8,135.1,135.06,6.32914366]
[1763569027707,9.78882769,135.12,135.08,6.32914366]
[1763569027877,9.78882769,135.14,135.1,6.32914366]
[1763569028082,9.78882769,135.12,135.09,7.03914366]
[1763569028408,9.78882769,135.12,135.07,0.71]
[1763569028715,16.11797135,135.12,135.07,7.03914366]
[1763569028887,16.76797135,135.12,135.07,7.03914366]
[1763569029294,9.78882769,135.07,135.03,0.71]
[1763569029501,11.58882769,135.07,135.03,7.03914366]
[1763569029820,11.58882769,135.07,135.03,25.16010366]
[1763569030001,11.58882769,135.07,135.04,0.71]
[1763569030197,11.58882769,135.07,135.03,18.83096]
[1763569030389,18.56797135,135.07,135.01,7.03914366]
[1763569030583,18.56797135,135.07,134.96,2.0]
[1763569030584,9.78882769,135.04,134.96,9.40954424]
[1763569030895,1.8,135.03,135.0,6.32914366]
[1763569031093,11.58882769,135.05,135.01,6.32914366]
[1763569031292,2.45,135.05,134.99,7.03914366]
[1763569031501,6.97914366,135.04,134.96,0.2]
[1763569031812,9.78882769,135.02,134.98,6.32914366]
[1763569032111,1.8,135.01,134.97,0.71]
[1763569032312,9.78882769,135.0,134.96,0.2]
[1763569032490,16.11797135,135.0,134.96,0.2]
[1763569033302,9.78882769,134.98,134.96,0.2]
[1763569033600,1.8,134.97,134.96,0.2]
[1763569035108,1.8,134.97,134.96,0.91]
[1763569035308,1.8,134.97,134.96,0.2]
[1763569036291,9.78882769,135.02,134.96,7.23914366]
[1763569036492,9.78882769,135.0,134.96,0.91]
[1763569036794,1.8,134.99,134.97,0.71]
[1763569036992,1.8,134.99,134.98,6.32914366]
[1763569037294,0.65,135.08,134.98,6.32914366]
[1763569037538,6.32914366,135.04,134.99,0.71]
[1763569037827,16.11797135,135.02,134.96,0.2]
[1763569038024,16.11797135,135.02,134.96,0.91]
[1763569038025,9.78882769,135.02,134.96,0.91]
[1763569038191,16.11797135,135.02,134.97,6.32914366]
[1763569038517,9.78882769,135.02,134.98,7.03914366]
[1763569038923,9.78882769,135.04,135.0,6.32914366]
[1763569039104,9.78882769,135.06,135.02,6.32914366]
[1763569039306,1.8,135.09,135.05,6.32914366]
[1763569039606,9.78882769,135.07,135.01,18.12096]
[1763569039809,9.78882769,135.07,135.03,6.32914366]
[1763569040325,9.78882769,135.07,135.03,0.69]
[1763569040620,9.78882769,135.07,135.03,6.32914366]
[1763569040830,9.78882769,135.07,135.03,7.01914366]
[1763569041023,9.78882769,135.09,135.05,6.32914366]
[1763569041195,1.8,135.08,135.05,6.32914366]
[1763569041733,9.78882769,135.07,135.03,6.32914366]
[1763569041922,9.78882769,135.07,134.97,18.52263465]
[1763569041923,9.78882769,135.07,135.04,6.32914366]
[1763569042299,9.78882769,135.07,135.04,7.01914366]
[1763569043031,1.8,135.06,135.05,7.01914366]
[1763569043334,10.43882769,135.12,135.05,0.69]
[1763569043519,26.90010366,135.11,135.05,7.01914366]
[1763569043823,20.57096,135.11,135.05,7.01914366]
[1763569044201,9.78882769,135.08,135.03,6.32914366]
[1763569044414,9.78882769,135.06,135.03,6.32914366]
[1763569044621,9.78882769,135.06,135.02,7.01914366]
[1763569044828,9.78882769,135.06,135.02,6.32914366]
[1763569045016,9.78882769,135.06,135.03,7.01914366]
[1763569045220,9.78882769,135.06,135.02,6.32914366]
[1763569045407,16.76797135,135.06,134.99,18.12096]
[1763569045602,16.76797135,135.06,135.01,6.32914366]
[1763569045918,18.77096,135.08,135.02,6.32914366]
[1763569046242,9.78882769,135.12,135.07,6.32914366]
[1763569046403,9.78882769,135.1,135.08,6.32914366]
[1763569046604,1.8,135.11,135.03,18.12096]
[1763569046804,1.8,135.11,135.02,6.32914366]
[1763569046805,16.11797135,135.07,135.02,6.32914366]
[1763569047019,9.78882769,135.05,135.01,0.69]
[1763569047216,9.78882769,135.05,135.01,7.01914366]
[1763569047708,1.8,135.06,135.03,6.32914366]
[1763569047916,0.65,135.08,135.02,0.69]
[1763569047917,1.8,135.05,135.04,6.32914366]
[1763569048123,16.11797135,135.09,135.03,6.32914366]
[1763569048429,9.78882769,135.06,135.03,6.32914366]
[1763569048735,9.78882769,135.06,135.03,7.01914366]
[1763569048935,9.78882769,135.06,135.03,0.69]
[1763569049139,9.78882769,135.06,135.02,9.7341925]
[1763569049434,20.17302019,135.06,135.0,9.7341925]
[1763569049610,9.78882769,135.04,135.0,10.4241925]
[1763569049810,1.8,135.03,135.0,10.4241925]
[1763569050040,1.8,135.03,135.01,0.69]
[1763569050539,1.8,135.03,134.99,28.5451525]
[1763569050737,1.8,135.03,135.01,0.69]
[1763569050939,1.8,135.05,135.02,9.7341925]
[1763569051106,1.8,135.05,135.03,9.7341925]
[1763569051749,9.78882769,135.07,135.03,10.4241925]
[1763569051942,9.78882769,135.05,135.0,0.69]
[1763569052235,9.78882769,135.05,135.01,9.7341925]
[1763569052449,9.78882769,135.05,135.02,9.7341925]
[1763569052613,9.78882769,135.05,135.03,9.7341925]
[1763569052818,9.78882769,135.05,135.02,9.7341925]
[1763569053241,9.78882769,135.05,134.96,0.2]
[1763569053451,9.78882769,135.03,134.99,9.7341925]
[1763569053634,9.78882769,135.01,134.97,9.7341925]
[1763569054013,9.78882769,135.01,134.97,10.4241925]
[1763569054257,0.65,135.0,134.96,0.2]
[1763569054426,19.52302019,134.99,134.96,0.2]
[1763569054628,9.78882769,134.97,134.96,0.2]
[1763569055429,1.8,134.98,134.96,0.2]
[1763569056126,19.52302019,134.99,134.96,0.2]
[1763569056460,11.58882769,134.97,134.96,0.2]
[1763569056640,21.32302019,134.97,134.96,0.2]
[1763569056839,11.58882769,134.97,134.96,0.2]
[1763569057353,21.32302019,134.97,134.96,0.2]
[1763569057724,11.58882769,134.97,134.96,0.2]
[1763569058154,21.32302019,134.97,134.96,0.2]
[1763569058350,21.97302019,134.97,134.96,0.2]
[1763569058527,21.32302019,134.97,134.96,0.2]
[1763569059033,11.58882769,134.97,134.96,0.2]
[1763569059556,9.78882769,134.97,134.96,0.2]
[1763569059759,9.78882769,134.99,134.96,0.2]
[1763569059956,1.8,134.98,134.96,0.2]
[1763569060530,9.78882769,134.99,134.96,0.2]
[1763569060531,9.78882769,134.99,134.96,62.3]
[1763569060752,9.78882769,135.01,134.97,9.7341925]
[1763569061052,1.8,135.0,134.98,9.7341925]
[1763569061228,1.8,135.0,134.97,9.7341925]
[1763569061437,1.8,135.0,134.97,10.4241925]
[1763569062137,9.78882769,135.01,134.97,10.4241925]
[1763569062335,1.8,135.0,134.97,0.69]
[1763569062854,18.12096,135.06,134.99,9.7341925]
[1763569063034,11.58882769,135.06,135.02,9.7341925]
[1763569063237,11.58882769,135.06,135.0,10.4241925]
[1763569063238,9.7341925,135.05,135.0,10.4241925]
[1763569063646,12.1841925,135.06,135.01,10.4241925]
[1763569063842,11.58882769,135.06,135.02,9.7341925]
[1763569064047,11.58882769,135.06,135.02,10.4241925]
[1763569064256,1.8,135.06,135.02,10.4241925]
[1763569064757,1.8,135.05,135.01,9.7341925]
[1763569064935,1.8,135.05,135.02,0.69]
[1763569065129,9.78882769,135.04,135.01,9.7341925]
[1763569065339,9.78882769,135.04,135.0,9.7341925]
[1763569065558,9.78882769,135.02,134.98,0.69]
[1763569065738,1.8,135.01,134.99,9.7341925]
[1763569066064,1.8,135.01,134.98,9.7341925]
[1763569066241,1.8,135.01,134.99,9.7341925]
[1763569066951,1.8,135.01,134.97,0.69]
[1763569067134,1.8,135.01,134.98,9.7341925]
[1763569067331,1.8,135.01,134.99,9.7341925]
[1763569067664,9.78882769,135.06,134.97,0.69]
[1763569067833,9.78882769,135.02,134.97,0.69]
[1763569068034,9.78882769,135.02,134.98,9.7341925]
[1763569068634,9.78882769,135.02,134.99,9.7341925]
[1763569068855,1.8,135.03,135.01,9.7341925]
[1763569069051,1.8,135.03,135.01,0.69]
[1763569069664,1.8,135.03,135.01,0.67]
[1763569069852,1.8,135.03,135.01,10.4041925]
[1763569070062,9.78882769,135.02,134.98,10.4041925]
[1763569070251,1.8,135.03,135.01,9.7341925]
[1763569070544,1.8,135.03,135.02,10.4041925]
[1763569070752,1.8,135.03,135.01,9.7341925]
[1763569071163,1.8,135.03,135.0,9.7341925]
[1763569071164,9.78882769,135.02,135.0,9.7341925]
[1763569071367,9.78882769,135.02,134.98,9.7341925]
[1763569071671,9.78882769,135.02,134.99,9.7341925]
[1763569071869,1.8,135.03,134.99,9.7341925]
[1763569072074,1.8,135.03,135.0,10.4041925]
[1763569072450,1.8,135.03,135.02,9.7341925]
[1763569072871,1.8,135.05,135.02,10.4041925]
[1763569073655,18.12096,135.07,135.03,10.4041925]
[1763569073853,1.8,135.06,135.04,9.7341925]
[1763569074171,1.8,135.06,135.03,10.4041925]
[1763569074750,1.8,135.06,134.98,7.40850496]
[1763569074751,9.78882769,135.05,135.02,9.7341925]
[1763569075079,9.78882769,135.05,135.01,10.4041925]
[1763569075378,9.78882769,135.05,135.02,9.7341925]
[1763569075880,9.78882769,135.08,135.04,9.7341925]
[1763569076059,9.78882769,135.08,135.05,9.7341925]
[1763569076242,1.8,135.09,135.06,9.7341925]
[1763569077049,1.8,135.09,135.06,10.4041925]
[1763569077265,1.8,135.09,135.06,0.67]
[1763569077460,1.8,135.09,135.05,71.8341925]
[1763569077669,1.8,135.09,135.05,72.5041925]
[1763569077976,1.8,135.08,135.06,0.67]
[1763569078175,1.8,135.08,135.05,71.8341925]
[1763569078348,11.58882769,135.08,135.05,62.1]
[1763569078550,11.58882769,135.08,135.05,62.77]
[1763569078752,11.58882769,135.08,135.05,72.5041925]
[1763569078957,1.8,135.08,135.05,72.5041925]
[1763569079453,1.8,135.08,135.06,0.67]
[1763569080155,9.78882769,135.1,135.06,0.67]
[1763569080361,11.58882769,135.12,135.08,9.7341925]
[1763569080556,11.58882769,135.12,135.1,9.7341925]
[1763569080865,11.58882769,135.12,135.08,62.1]
[1763569080866,1.8,135.14,135.11,9.7341925]
[1763569081089,1.8,135.14,135.12,10.4041925]
[1763569081388,1.8,135.14,135.11,9.7341925]
[1763569081592,19.52302019,135.13,135.09,0.67]
[1763569081748,19.52302019,135.11,135.06,0.67]
[1763569081957,11.5341925,135.1,135.06,0.67]
[1763569082147,1.8,135.1,135.06,10.4041925]
[1763569082350,1.8,135.1,135.08,9.7341925]
[1763569082582,1.8,135.1,135.06,0.67]
[1763569082583,1.8,135.1,135.09,9.7341925]
[1763569082760,18.22096,135.15,135.09,9.7341925]
[1763569082956,1.8,135.14,135.12,9.7341925]
[1763569083160,1.8,135.14,135.1,0.67]
[1763569083372,1.8,135.14,135.1,10.4041925]
[1763569083971,1.8,135.14,135.12,9.7341925]
[1763569084175,1.8,135.14,135.08,7.40274875]
[1763569084176,1.8,135.14,135.1,9.7341925]
[1763569084492,9.8341925,135.15,135.07,0.67]
[1763569084493,0.1,135.15,135.08,9.7341925]
[1763569084789,0.1,135.15,135.07,70.17343648]
[1763569084993,19.62302019,135.15,135.1,9.7341925]
[1763569085288,28.00978769,135.15,135.11,10.4041925]
[1763569085972,9.7341925,135.12,135.07,62.77]
[1763569086168,9.78882769,135.13,135.09,9.7341925]
[1763569086369,0.1,135.15,135.11,9.7341925]
[1763569086550,20.27302019,135.15,135.11,62.1]
[1763569086758,9.7341925,135.14,135.11,62.1]
[1763569086946,9.7341925,135.13,135.11,62.1]
[1763569087172,0.65,135.13,135.11,62.1]
[1763569087477,19.52302019,135.14,135.11,62.1]
[1763569087651,20.17302019,135.14,135.11,62.1]
[1763569087850,9.78882769,135.14,135.11,62.77]
[1763569088052,1.9,135.15,135.12,10.4041925]
[1763569088285,0.1,135.15,135.12,0.67]
[1763569088472,0.1,135.15,135.11,9.7341925]
[1763569088673,0.1,135.15,135.12,9.7341925]
[1763569089189,0.1,135.15,135.13,10.4041925]
[1763569089855,0.1,135.15,135.14,0.67]
[1763569090050,0.1,135.15,135.14,10.4041925]
[1763569090653,0.1,135.15,135.12,0.67]
[1763569090866,0.1,135.15,135.14,9.7341925]
[1763569091194,0.1,135.15,135.12,9.7341925]
[1763569091406,0.75,135.15,135.11,9.7341925]
[1763569091696,21.32302019,135.14,135.09,10.4041925]
[1763569091855,9.7341925,135.13,135.09,0.67]
[1763569092057,19.52302019,135.12,135.07,10.4041925]
[1763569092464,19.52302019,135.12,135.08,0.67]
[1763569092958,10.3841925,135.11,135.06,10.4041925]
[1763569093159,10.3841925,135.11,135.03,0.67]
[1763569093160,9.7341925,135.08,135.03,0.67]
[1763569093574,9.7341925,135.07,135.03,0.67]
[1763569093783,1.8,135.06,135.03,0.67]
[1763569095263,1.8,135.06,134.97,11.58882769]
[1763569095472,11.5341925,135.06,134.98,0.67]
[1763569095678,1.8,135.06,135.02,9.7341925]
[1763569096076,1.8,135.06,135.03,10.4041925]
[1763569096983,9.78882769,135.09,135.04,10.4041925]
[1763569097168,2.45,135.08,135.04,9.7341925]
[1763569097366,0.65,135.07,135.02,10.4041925]
[1763569097564,19.52302019,135.06,135.01,9.7341925]
[1763569097864,9.7341925,135.05,135.0,9.7341925]
[1763569098071,1.8,135.04,135.0,10.4041925]
[1763569098665,1.8,135.04,135.0,0.67]
[1763569098868,1.8,135.04,135.0,10.4041925]
[1763569099664,11.5341925,135.04,135.0,0.67]
[1763569099899,19.52302019,135.03,134.99,62.1]
[1763569100059,19.52302019,135.03,134.99,62.81]
[1763569100266,9.78882769,135.03,134.99,62.81]
[1763569100617,1.8,135.04,135.0,0.71]
[1763569100808,1.8,135.04,135.0,10.4441925]
[1763569100983,10.43882769,135.03,134.99,62.1]
[1763569101615,1.8,135.02,135.0,10.4441925]
[1763569101792,1.8,135.02,135.0,0.71]
[1763569101991,20.17302019,135.05,135.0,10.4441925]
[1763569102194,1.8,135.05,135.01,10.4441925]
[1763569103115,12.1841925,135.05,135.0,9.7341925]
[1763569103486,10.3841925,135.04,134.99,62.81]
[1763569103686,9.78882769,135.04,135.0,9.7341925]
[1763569103890,10.43882769,135.04,134.99,62.1]
[1763569104101,20.17302019,135.04,134.99,72.5441925]
[1763569104338,9.78882769,135.02,134.99,62.1]
[1763569104505,1.8,135.01,134.99,62.1]
[1763569105013,1.8,135.01,134.99,72.5441925]
[1763569105182,1.8,135.01,134.99,71.8341925]
[1763569105377,27.8551525,135.04,134.99,72.5441925]
[1763569105378,1.8,135.03,134.99,72.5441925]
[1763569105792,2.45,135.03,134.99,62.1]
[1763569106004,11.5341925,135.03,134.99,62.1]
[1763569106209,9.7341925,135.0,134.99,62.1]
[1763569106431,1.8,135.0,134.99,62.82]
[1763569106717,9.78882769,135.04,134.99,72.5541925]
[1763569106917,12.1841925,135.06,135.01,9.7341925]
[1763569107124,1.8,135.06,135.02,9.7341925]
[1763569107282,9.78882769,135.07,135.03,9.7341925]
[1763569107482,1.8,135.06,135.03,0.72]
[1763569108505,1.8,135.06,135.03,72.5541925]
[1763569108686,1.8,135.06,135.04,9.7341925]
[1763569108882,1.8,135.06,135.04,10.4541925]
[1763569109285,1.8,135.06,135.04,0.72]
[1763569109485,9.7341925,135.08,134.98,80.22096]
[1763569109706,1.8,135.07,135.04,0.72]
[1763569110083,20.17302019,135.06,134.99,0.72]
[1763569110396,9.7341925,135.05,134.99,10.4541925]
[1763569110593,9.7341925,135.04,134.98,9.7341925]
[1763569110904,1.8,135.03,134.99,0.72]
[1763569111104,1.8,135.03,134.99,7.07725941]
[1763569111307,1.8,135.03,135.0,0.72]
[1763569111492,16.1460871,135.1,135.02,6.35725941]
[1763569111693,8.15725941,135.09,135.03,7.07725941]
[1763569111901,6.35725941,135.08,135.03,7.07725941]
[1763569112085,6.35725941,135.08,135.04,0.72]
[1763569112509,8.15725941,135.09,135.04,0.72]
[1763569112809,1.8,135.08,135.04,0.72]
[1763569113009,1.8,135.08,135.04,7.07725941]
[1763569113405,1.8,135.08,135.05,0.72]
[1763569113786,2.09999999,135.15,135.07,6.35725941]
[1763569113787,0.75,135.15,135.07,6.35725941]
[1763569114006,1.8,135.14,135.09,6.35725941]
[1763569114324,1.8,135.14,135.1,6.35725941]
[1763569114611,1.8,135.14,135.09,6.35725941]
[1763569114812,1.8,135.14,135.1,7.07725941]
[1763569115308,8.80725941,135.14,135.08,7.07725941]
[1763569115510,8.15725941,135.14,135.08,6.35725941]
[1763569115812,1.8,135.14,135.09,0.72]
[1763569116004,8.15725941,135.14,135.09,0.72]
[1763569116202,24.47821941,135.13,135.09,0.72]
[1763569116412,6.35725941,135.12,135.07,7.07725941]
[1763569116709,18.77096,135.13,135.04,18.12096]
[1763569116710,25.12821941,135.13,135.06,0.72]
[1763569116890,25.12821941,135.13,135.07,6.35725941]
[1763569117288,24.47821941,135.13,135.08,0.72]
[1763569117486,6.35725941,135.12,135.08,0.72]